fUST/lending_fUST_20240921
["ID","MTS","AMOUNT","RATE_DAILY","PERIOD"]
[338701488,1726885849204,-501.3767592,0.00014512,2]
[338701489,1726885849213,-501.60560376,0.00014512,2]
[338701490,1726885849222,-508.39753781,0.00014512,2]
[338701491,1726885849231,-500.0,0.00014512,2]
[338701492,1726885849241,-453.65260676,0.00014512,2]
[338701493,1726885849251,-500.0,0.00014512,2]
[338701494,1726885849260,-177.70138424,0.00014512,2]
[338701495,1726885849269,-553.9322331,0.00014512,2]
[338701496,1726885849279,-500.0,0.00014512,2]
[338701497,1726885849288,-500.0,0.00014512,2]
[338701498,1726885849298,-310.95561112,0.00014512,2]
[338701499,1726885849307,-500.0,0.00014512,2]
[338701500,1726885849317,-501.2773307,0.00014512,2]
[338701501,1726885849327,-570.94,0.00014512,2]
[338701502,1726885849337,-603.96,0.00014512,2]
[338701503,1726885849347,-501.90304253,0.00014512,2]
[338701504,1726885849357,-500.0,0.00014512,2]
[338701505,1726885849366,-495.684743,0.00014512,2]
[338701506,1726885849375,-500.0,0.00014512,2]
[338701507,1726885849384,-495.684743,0.00014512,2]
[338701508,1726885849393,-500.0,0.00014512,2]
[338701509,1726885849403,-500.0,0.00014512,2]
[338701510,1726885849412,-505.56043026,0.00014512,2]
[338701511,1726885849422,-500.0,0.00014512,2]
[338701512,1726885849431,-568.0,0.00014512,2]
[338701513,1726885849440,-152.677464,0.00014512,2]
[338701514,1726885849452,-152.677464,0.00014512,2]
[338701515,1726885849461,-151.0,0.00014512,2]
[338701516,1726885849470,-500.0,0.00014512,2]
[338701517,1726885849479,-500.0,0.00014512,2]
[338701518,1726885849488,-500.0,0.00014512,2]
[338701519,1726885849498,-290.721966,0.00014512,2]
[338701520,1726885849507,-290.721966,0.00014512,2]
[338701521,1726885849516,-151.0,0.00014512,2]
[338701522,1726885849528,-501.61666094,0.00014512,2]
[338701523,1726885849538,-488.129277,0.00014512,2]
[338701524,1726885849547,-488.129277,0.00014512,2]
[338701525,1726885849556,-151.0,0.00014512,2]
[338701526,1726885849565,-500.0,0.00014512,2]
[338701527,1726885849574,-151.0,0.00014512,2]
[338701528,1726885849583,-151.0,0.00014512,2]
[338701529,1726885849592,-207.852701,0.00014512,2]
[338701530,1726885849602,-151.0,0.00014524,2]
[338701531,1726885849611,-151.0,0.00014524,2]
[338701532,1726885849620,-152.52955,0.00014524,2]
[338701533,1726885849629,-151.0,0.00014527,2]
[338701534,1726885849639,-152.118785,0.00014527,2]
[338701535,1726885849648,-151.267765,0.00014527,2]
[338701536,1726885849658,-151.0,0.00014527,2]
[338701537,1726885849667,-289.72997,0.00014527,2]
[338701538,1726885849676,-151.0,0.00014527,2]
[338701539,1726885849685,-1418.438112,0.00014527,2]
[338701540,1726885849694,-1418.438112,0.00014527,2]
[338701541,1726885849704,-781.840201,0.00014527,2]
[338701542,1726885849713,-781.840201,0.00014527,2]
[338701543,1726885849722,-151.0,0.00014527,2]
[338701544,1726885849731,-151.0,0.00014529,2]
[338701545,1726885849741,-151.0,0.00014529,2]
[338701546,1726885849750,-151.0,0.00014573,2]
[338701547,1726885849759,-151.0,0.00014573,2]
[338701548,1726885849768,-153.0,0.000146,2]
[338701549,1726885849781,-153.0,0.000146,2]
[338701550,1726885849791,-208.8866586,0.000146,2]
[338701551,1726885849800,-153.0,0.000146,2]
[338701552,1726885849809,-417.5279643,0.000146,2]
[338701553,1726885849818,-150.112233,0.000146,2]
[338701554,1726885849828,-150.112233,0.000147,2]
[338701555,1726885849838,-150.112233,0.000147,2]
[338701556,1726885849847,-7799.48899099,0.00014755,2]
[338701557,1726885849856,-2952.71,0.00014765,2]
[338701558,1726885849866,-500.0,0.00014765,2]
[338701559,1726885849875,-500.0,0.00014765,2]
[338701560,1726885849885,-628.76,0.00014765,2]
[338701561,1726885849894,-500.0,0.00014765,2]
[338701562,1726885849903,-1195.51,0.00014765,2]
[338701563,1726885849912,-500.0,0.00014765,2]
[338701564,1726885849922,-500.0,0.00014765,2]
[338701565,1726885849931,-500.0,0.00014765,2]
[338701566,1726885849941,-500.0,0.00014765,2]
[338701567,1726885849950,-801.24,0.00014765,2]
[338701568,1726885849959,-1314.04,0.00014765,2]
[338701569,1726885849969,-500.0,0.00014765,2]
[338701570,1726885849977,-19009.72,0.00014765,2]
[338701571,1726885849986,-7799.48899099,0.00014766,2]
[338701572,1726885849995,-151.394749,0.00014766,2]
[338701573,1726885850004,-151.0,0.00014766,2]
[338701574,1726885850013,-216.717068,0.00014766,2]
[338701575,1726885850023,-216.717068,0.00014766,2]
[338701576,1726885850034,-151.0,0.00014766,2]
[338701577,1726885850043,-151.0,0.00014766,2]
[338701578,1726885850053,-151.0,0.00014766,2]
[338701579,1726885850063,-500.0,0.00014766,2]
[338701580,1726885850074,-541.98605961,0.00014766,2]
[338701581,1726885850083,-500.0,0.00014766,2]
[338701582,1726885850093,-957.71,0.00014766,2]
[338701583,1726885850102,-514.8613394,0.00014766,2]
[338701584,1726885850112,-527.04212277,0.00014766,2]
[338701585,1726885850121,-546.4504727,0.00014766,2]
[338701586,1726885850130,-500.0,0.00014766,2]
[338701587,1726885850139,-596.17,0.00014766,2]
[338701588,1726885850149,-500.0,0.00014766,2]
[338701589,1726885850158,-500.0,0.00014766,2]
[338701590,1726885850167,-500.0,0.00014766,2]
[338701591,1726885850177,-500.0,0.00014766,2]
[338701592,1726885850185,-500.0,0.00014766,2]
[338701593,1726885850194,-500.0,0.00014766,2]
[338701594,1726885850203,-500.0,0.00014766,2]
[338701595,1726885850214,-500.0,0.00014766,2]
[338701596,1726885850224,-513.45,0.00014766,2]
[338701597,1726885850235,-500.0,0.00014766,2]
[338701598,1726885850246,-464.16896221,0.00014766,2]
[338701599,1726885850256,-500.0,0.00014766,2]
[338701600,1726885850266,-500.0,0.00014766,2]
[338701601,1726885850282,-621.5272717,0.00014766,2]
[338701602,1726885850292,-245.72339516,0.00014766,2]
[338701603,1726885850301,-500.0,0.00014766,2]
[338701604,1726885850310,-500.0,0.00014766,2]
[338701605,1726885850319,-499.41539677,0.00014767,2]
[338701606,1726885850328,-500.0,0.00014767,2]
[338701607,1726885850337,-199.4837146,0.00014767,2]
[338701608,1726885850345,-534.61842894,0.00014767,2]
[338701609,1726885850355,-500.0,0.00014767,2]
[338701610,1726885850364,-500.0,0.00014767,2]
[338701611,1726885850373,-500.0,0.00014767,2]
[338701612,1726885850382,-540.96708707,0.00014767,2]
[338701613,1726885850391,-500.0,0.00014767,2]
[338701614,1726885850401,-500.0,0.00014767,2]
[338701615,1726885850410,-500.0,0.00014767,2]
[338701616,1726885850418,-773.58,0.00014767,2]
[338701617,1726885850427,-500.0,0.00014767,2]
[338701618,1726885850438,-500.0,0.00014767,2]
[338701619,1726885850447,-500.0,0.00014767,2]
[338701620,1726885850461,-527.77328766,0.00014767,2]
[338701621,1726885850470,-500.0,0.00014767,2]
[338701622,1726885850479,-500.0,0.00014767,2]
[338701623,1726885850488,-200.0,0.00014767,2]
[338701624,1726885850498,-500.0,0.00014767,2]
[338701625,1726885850508,-500.0,0.00014767,2]
[338701626,1726885850517,-500.0,0.00014767,2]
[338701627,1726885850531,-500.0,0.00014773,2]
[338701628,1726885850541,-151.523071,0.00014776,2]
[338701629,1726885850551,-500.0,0.00014776,2]
[338701630,1726885850560,-562.47,0.00014776,2]
[338701631,1726885850572,-151.0,0.00014776,2]
[338701632,1726885850581,-500.0,0.00014776,2]
[338701633,1726885850589,-192.44832327,0.00014776,2]
[338701634,1726885850599,-151.0,0.00014776,2]
[338701635,1726885850608,-500.0,0.00014776,2]
[338701636,1726885850618,-500.0,0.00014776,2]
[338701637,1726885850628,-500.0,0.00014776,2]
[338701638,1726885850638,-500.0,0.00014776,2]
[338701639,1726885850649,-504.37494687,0.00014776,2]
[338701640,1726885850659,-500.0,0.00014776,2]
[338701641,1726885850669,-500.0,0.00014776,2]
[338701642,1726885850679,-500.0,0.00014776,2]
[338701643,1726885850688,-503.97102658,0.00014776,2]
[338701644,1726885850699,-503.31174505,0.00014776,2]
[338701645,1726885850708,-501.15088425,0.00014776,2]
[338701646,1726885850718,-500.0,0.00014776,2]
[338701647,1726885850729,-503.92745011,0.00014776,2]
[338701648,1726885850738,-500.0,0.00014776,2]
[338701649,1726885850748,-500.0,0.00014776,2]
[338701650,1726885850758,-502.31986415,0.00014776,2]
[338701651,1726885850768,-502.16199467,0.00014776,2]
[338701652,1726885850778,-151.0,0.00014776,2]
[338701653,1726885850788,-307.024081,0.00014776,2]
[338701654,1726885850798,-500.0,0.00014776,2]
[338701655,1726885850808,-307.024081,0.00014776,2]
[338701656,1726885850819,-500.0,0.00014776,2]
[338701657,1726885850829,-501.72649322,0.00014776,2]
[338701658,1726885850839,-500.0,0.00014776,2]
[338701659,1726885850850,-500.0,0.00014776,2]
[338701660,1726885850860,-500.0,0.00014776,2]
[338701661,1726885850870,-500.0,0.00014776,2]
[338701662,1726885850880,-293.038549,0.00014776,2]
[338701663,1726885850890,-293.038549,0.00014776,2]
[338701664,1726885850900,-500.0,0.00014776,2]
[338701665,1726885850910,-500.0,0.00014776,2]
[338701666,1726885850920,-500.0,0.00014776,2]
[338701667,1726885850931,-500.0,0.00014776,2]
[338701668,1726885850941,-932.52,0.00014776,2]
[338701669,1726885850951,-500.0,0.00014776,2]
[338701670,1726885850961,-500.0,0.00014776,2]
[338701671,1726885850971,-501.9642815,0.00014776,2]
[338701672,1726885851127,-500.0,0.00014776,2]
[338701673,1726885851136,-500.0,0.00014776,2]
[338701674,1726885851146,-449.1000456,0.00014776,2]
[338701675,1726885851157,-468.04690148,0.00014776,2]
[338701676,1726885851167,-500.0,0.00014776,2]
[338701677,1726885851177,-500.0,0.00014776,2]
[338701678,1726885851187,-500.0,0.00014776,2]
[338701679,1726885851198,-500.0,0.00014776,2]
[338701680,1726885851209,-500.0,0.00014776,2]
[338701681,1726885851218,-501.4104444,0.00014776,2]
[338701682,1726885851228,-362.64083535,0.00014776,2]
[338701683,1726885851238,-500.0,0.00014776,2]
[338701684,1726885851248,-503.86863484,0.00014776,2]
[338701685,1726885851259,-579.89,0.00014776,2]
[338701686,1726885851271,-500.0,0.00014776,2]
[338701687,1726885851283,-667.98,0.00014776,2]
[338701688,1726885851292,-503.89207468,0.00014776,2]
[338701689,1726885851302,-509.68797545,0.00014776,2]
[338701690,1726885851313,-699.74,0.00014776,2]
[338701691,1726885851323,-503.03716034,0.00014776,2]
[338701692,1726885851334,-500.0,0.00014776,2]
[338701693,1726885851346,-151.0,0.00014786,2]
[338701694,1726885851357,-500.0,0.00014786,2]
[338701695,1726885851368,-500.0,0.00014786,2]
[338701696,1726885851377,-216.717068,0.00014786,2]
[338701697,1726885851386,-216.717068,0.00014786,2]
[338701698,1726885851396,-508.19981016,0.00014786,2]
[338701699,1726885851407,-151.0,0.00014786,2]
[338701700,1726885851418,-500.0,0.00014786,2]
[338701701,1726885851429,-550.71491705,0.00014786,2]
[338701702,1726885851440,-151.0,0.00014786,2]
[338701703,1726885851451,-500.0,0.00014786,2]
[338701704,1726885851462,-500.0,0.00014786,2]
[338701705,1726885851476,-595.45,0.00014786,2]
[338701706,1726885851485,-500.0,0.00014786,2]
[338701707,1726885851495,-502.7441512,0.00014786,2]
[338701708,1726885851505,-500.0,0.00014786,2]
[338701709,1726885851516,-500.0,0.00014786,2]
[338701710,1726885851528,-151.0,0.00014786,2]
[338701711,1726885851538,-500.0,0.00014786,2]
[338701712,1726885851547,-724.520998,0.00014786,2]
[338701713,1726885851556,-724.520998,0.00014786,2]
[338701714,1726885851565,-431.599806,0.00014786,2]
[338701715,1726885851575,-431.599806,0.00014786,2]
[338701716,1726885851584,-1605.24,0.00014786,2]
[338701717,1726885851596,-190.142944,0.00014786,2]
[338701718,1726885851608,-151.0,0.00014786,2]
[338701719,1726885851618,-190.142944,0.00014786,2]
[338701720,1726885851628,-500.0,0.00014786,2]
[338701721,1726885851639,-500.0,0.00014786,2]
[338701722,1726885851650,-383.411006,0.00014786,2]
[338701723,1726885851661,-383.411006,0.00014786,2]
[338701724,1726885851672,-500.0,0.00014786,2]
[338701725,1726885851683,-853.98,0.00014786,2]
[338701726,1726885851693,-500.0,0.00014786,2]
[338701727,1726885851704,-500.0,0.00014786,2]
[338701728,1726885851715,-502.3493915,0.00014786,2]
[338701729,1726885851726,-500.0,0.00014786,2]
[338701730,1726885851736,-500.0,0.00014786,2]
[338701731,1726885851746,-570.94,0.00014786,2]
[338701732,1726885851757,-603.96,0.00014786,2]
[338701733,1726885851768,-500.0,0.00014786,2]
[338701734,1726885851778,-500.0,0.00014786,2]
[338701735,1726885851787,-462.67992448,0.00014786,2]
[338701736,1726885851806,-37.32007552,0.00014786,2]
[338701737,1726885851817,-500.0,0.00014786,2]
[338701738,1726885851827,-500.0,0.00014786,2]
[338701739,1726885851838,-568.0,0.00014786,2]
[338701740,1726885851848,-500.0,0.00014786,2]
[338701741,1726885851859,-500.0,0.00014786,2]
[338701742,1726885851868,-500.0,0.00014786,2]
[338701743,1726885851877,-500.0,0.00014786,2]
[338701744,1726885851886,-151.0,0.00014791,2]
[338701745,1726885851895,-151.0,0.00014791,2]
[338701746,1726885851905,-151.0,0.00014798,2]
[338701747,1726885851914,-1000.0,0.000148,2]
[338701748,1726885851923,-151.0,0.00014801,2]
[338701749,1726885851932,-216.717068,0.00014801,2]
[338701750,1726885851942,-216.717068,0.00014801,2]
[338701751,1726885851952,-151.0,0.00014801,2]
[338701752,1726885851963,-151.0,0.00014801,2]
[338701753,1726885851972,-495.684743,0.00014801,2]
[338701754,1726885851982,-495.684743,0.00014801,2]
[338701755,1726885851992,-152.677464,0.00014801,2]
[338701756,1726885852004,-152.677464,0.00014801,2]
[338701757,1726885852015,-151.0,0.00014801,2]
[338701758,1726885852025,-290.721966,0.00014801,2]
[338701759,1726885852035,-290.721966,0.00014801,2]
[338701760,1726885852044,-151.0,0.00014801,2]
[338701761,1726885852054,-488.129277,0.00014801,2]
[338701762,1726885852063,-488.129277,0.00014801,2]
[338701763,1726885852072,-151.0,0.00014801,2]
[338701764,1726885852082,-151.0,0.00014801,2]
[338701765,1726885852093,-151.0,0.00014801,2]
[338701766,1726885852105,-207.852701,0.00014801,2]
[338701767,1726885852116,-150.0,0.00014814,2]
[338701768,1726885852128,-1075.22,0.00014825,2]
[338701769,1726885852138,-150.0,0.00014841,2]
[338701770,1726885852148,-200.97685763,0.00014869,2]
[338701771,1726885852157,-151.0,0.00014886,2]
[338701772,1726885852168,-226.701296,0.00014886,2]
[338701773,1726885852178,-500.0,0.00014899,7]
[338701774,1726885852190,-500.0,0.00014899,7]
[338701775,1726885852201,-500.0,0.00014899,7]
[338701776,1726885852210,-89.46556661,0.00014899,7]
[338701777,1726885852221,-410.53443339,0.00014899,7]
[338701778,1726885852231,-524.66,0.00014899,7]
[338701779,1726885852242,-1000.0,0.000149,2]
[338701780,1726885852252,-218.909317,0.000149,2]
[338701781,1726885852262,-638.78798534,0.00014906,2]
[338701782,1726885852271,-9692.12526431,0.00015,2]
[338701783,1726885940731,453.288198,0.00011781,2]
[338701784,1726885974839,178.288013,0.00013699,2]
[338701787,1726886220471,162.139169,0.00013322,2]
[338701788,1726886220898,162.139169,0.0001338,2]
[338701789,1726886221134,162.139169,0.00013437,2]
[338701790,1726886221347,162.139169,0.00013495,2]
[338701791,1726886221580,162.139169,0.00013553,2]
[338701792,1726886221817,162.139169,0.00013611,2]
[338701793,1726886222032,162.139169,0.00013669,2]
[338701794,1726886222328,162.139169,0.00013727,2]
[338701795,1726886222538,162.139169,0.00013784,2]
[338701796,1726886222759,162.139169,0.00013842,2]
[338701797,1726886222973,162.139169,0.000139,2]
[338701798,1726886223211,162.139169,0.00013958,2]
[338701799,1726886223460,162.139169,0.00014016,2]
[338701804,1726886542518,800.324433,0.00013699,2]
[338701805,1726886595997,472.086525,0.00011781,2]
[338701815,1726886885198,8239.3662311,0.00013117,2]
[338701860,1726887039095,-296.69386222,0.00014084,2]
[338701861,1726887039108,-1000.0,0.00014094,2]
[338701862,1726887039120,-1498.41698018,0.00014095,2]
[338701863,1726887039131,-300.0,0.00014097,2]
[338701864,1726887039143,-300.0,0.00014097,2]
[338701865,1726887039154,-1498.41698014,0.00014098,2]
[338701866,1726887039165,-150.112233,0.000141,2]
[338701867,1726887039176,-1498.41698014,0.00014101,2]
[338701868,1726887039186,-1498.41698014,0.00014104,2]
[338701869,1726887039198,-1498.41698014,0.00014107,2]
[338701870,1726887039210,-500.0,0.00014183,2]
[338701871,1726887039219,-500.0,0.00014183,2]
[338701872,1726887039231,-500.0,0.00014183,2]
[338701873,1726887039243,-500.0,0.00014183,2]
[338701874,1726887039254,-500.0,0.00014183,2]
[338701875,1726887039264,-500.0,0.00014183,2]
[338701876,1726887039273,-500.0,0.00014183,2]
[338701877,1726887039282,-500.0,0.00014183,2]
[338701878,1726887039291,-521.22184625,0.00014183,2]
[338701879,1726887039302,-500.0,0.00014183,2]
[338701880,1726887039313,-500.0,0.00014183,2]
[338701881,1726887039322,-500.0,0.00014183,2]
[338701882,1726887039333,-371.17832786,0.00014183,2]
[338701883,1726887039344,-369.41323791,0.00014183,2]
[338701884,1726887039354,-500.0,0.00014183,2]
[338701885,1726887039364,-500.0,0.00014183,2]
[338701886,1726887039373,-500.0,0.00014183,2]
[338701887,1726887039384,-500.0,0.00014183,2]
[338701888,1726887039394,-500.0,0.00014183,2]
[338701889,1726887039403,-500.0,0.00014183,2]
[338701890,1726887039414,-545.30555186,0.00014183,2]
[338701891,1726887039423,-473.9795292,0.00014183,2]
[338701892,1726887039433,-500.0,0.00014183,2]
[338701893,1726887039443,-500.0,0.00014183,2]
[338701894,1726887039452,-500.0,0.00014183,2]
[338701895,1726887039462,-500.0,0.00014183,2]
[338701896,1726887039471,-500.0,0.00014183,2]
[338701897,1726887039482,-500.0,0.00014183,2]
[338701898,1726887039494,-500.0,0.00014183,2]
[338701899,1726887039504,-500.0,0.00014183,2]
[338701900,1726887039514,-500.0,0.00014183,2]
[338701901,1726887039524,-500.0,0.00014183,2]
[338701902,1726887039535,-389.44860029,0.00014183,2]
[338701903,1726887039546,-500.0,0.00014183,2]
[338701904,1726887039557,-500.0,0.00014183,2]
[338701905,1726887039567,-500.0,0.00014183,2]
[338701906,1726887039576,-500.0,0.00014183,2]
[338701907,1726887039585,-500.0,0.00014183,2]
[338701908,1726887039595,-500.0,0.00014183,2]
[338701909,1726887039606,-500.0,0.00014183,2]
[338701910,1726887039616,-500.0,0.00014183,2]
[338701911,1726887039626,-500.0,0.00014183,2]
[338701912,1726887039638,-500.0,0.00014183,2]
[338701913,1726887039650,-500.0,0.00014183,2]
[338701914,1726887039660,-500.0,0.00014183,2]
[338701915,1726887039674,-500.0,0.00014183,2]
[338701916,1726887039683,-500.0,0.00014183,2]
[338701917,1726887039693,-500.0,0.00014183,2]
[338701918,1726887039704,-500.0,0.00014183,2]
[338701919,1726887039716,-500.0,0.00014183,2]
[338701920,1726887039728,-500.0,0.00014183,2]
[338701921,1726887039738,-500.0,0.00014183,2]
[338701922,1726887039750,-500.0,0.00014183,2]
[338701923,1726887039761,-500.0,0.00014183,2]
[338701924,1726887039772,-500.0,0.00014183,2]
[338701925,1726887039782,-500.0,0.00014183,2]
[338701926,1726887039791,-500.0,0.00014183,2]
[338701927,1726887039804,-500.0,0.00014183,2]
[338701928,1726887039815,-500.0,0.00014183,2]
[338701929,1726887039825,-500.0,0.00014183,2]
[338701930,1726887039837,-500.0,0.00014183,2]
[338701931,1726887039848,-500.0,0.00014183,2]
[338701932,1726887039859,-500.0,0.00014183,2]
[338701933,1726887039870,-500.0,0.00014183,2]
[338701934,1726887039881,-500.0,0.00014183,2]
[338701935,1726887039891,-500.0,0.00014183,2]
[338701936,1726887039902,-500.0,0.00014183,2]
[338701937,1726887039913,-500.0,0.00014183,2]
[338701938,1726887039924,-500.0,0.00014183,2]
[338701939,1726887039933,-500.0,0.00014183,2]
[338701940,1726887039942,-500.0,0.00014183,2]
[338701941,1726887039953,-500.0,0.00014183,2]
[338701942,1726887039962,-648.87304744,0.00014183,2]
[338701943,1726887039972,-500.0,0.00014183,2]
[338701944,1726887039982,-500.0,0.00014183,2]
[338701945,1726887039992,-500.0,0.00014183,2]
[338701946,1726887040001,-500.0,0.00014183,2]
[338701947,1726887040011,-500.0,0.00014183,2]
[338701948,1726887040023,-500.0,0.00014183,2]
[338701949,1726887040032,-500.0,0.00014183,2]
[338701950,1726887040042,-500.0,0.00014183,2]
[338701951,1726887040051,-500.0,0.00014183,2]
[338701952,1726887040061,-500.0,0.00014183,2]
[338701953,1726887040071,-500.0,0.00014183,2]
[338701954,1726887040080,-500.0,0.00014183,2]
[338701955,1726887040090,-500.0,0.00014183,2]
[338701956,1726887040100,-500.0,0.00014183,2]
[338701957,1726887040110,-500.0,0.00014183,2]
[338701958,1726887040123,-500.0,0.00014183,2]
[338701959,1726887040133,-500.0,0.00014183,2]
[338701960,1726887040142,-321.59236312,0.00014183,2]
[338701961,1726887040152,-500.0,0.00014183,2]
[338701962,1726887040162,-500.0,0.00014183,2]
[338701963,1726887040173,-500.0,0.00014183,2]
[338701964,1726887040182,-500.0,0.00014183,2]
[338701965,1726887040193,-500.0,0.00014183,2]
[338701966,1726887040203,-500.0,0.00014183,2]
[338701967,1726887040213,-500.0,0.00014183,2]
[338701968,1726887040223,-182888.990378,0.00014184,2]
[338701969,1726887040234,-33862.1537117,0.00014184,2]
[338701970,1726887040243,-45722.2475945,0.00014185,2]
[338701971,1726887040253,-8465.53842792,0.00014185,2]
[338701972,1726887040263,-45722.2475945,0.00014186,2]
[338701973,1726887040273,-16931.0768558,0.00014186,2]
[338701974,1726887040282,-211.27249514,0.00014186,2]
[338701975,1726887040292,-500.0,0.00014186,2]
[338701976,1726887040302,-179.55963272,0.00014186,2]
[338701977,1726887040312,-381.36654936,0.00014186,2]
[338701978,1726887040321,-500.0,0.00014186,2]
[338701979,1726887040331,-443.24277485,0.00014186,2]
[338701980,1726887040341,-500.0,0.00014186,2]
[338701981,1726887040351,-500.0,0.00014186,2]
[338701982,1726887040360,-563.41625034,0.00014186,2]
[338701983,1726887040371,-500.0,0.00014186,2]
[338701984,1726887040381,-500.0,0.00014186,2]
[338701985,1726887040391,-500.0,0.00014186,2]
[338701986,1726887040401,-150.0,0.00014187,2]
[338701987,1726887040411,-3830.72368451,0.00014187,2]
[338701999,1726887041678,-15629.72853188,0.00014187,2]
[338702000,1726887041769,-5936.16306741,0.00014187,2]
[338702001,1726887041779,-500.0,0.00014193,2]
[338702002,1726887041789,-500.0,0.00014193,2]
[338702003,1726887041801,-500.0,0.00014193,2]
[338702004,1726887041811,-597.48,0.00014193,2]
[338702005,1726887041821,-974.97,0.00014193,2]
[338702006,1726887041830,-500.0,0.00014193,2]
[338702007,1726887041840,-500.0,0.00014193,2]
[338702008,1726887041850,-532.18461076,0.00014193,2]
[338702009,1726887041860,-500.0,0.00014193,2]
[338702010,1726887041869,-500.0,0.00014193,2]
[338702011,1726887041879,-500.0,0.00014193,2]
[338702012,1726887041889,-776.09,0.00014193,2]
[338702013,1726887041899,-500.0,0.00014193,2]
[338702014,1726887041909,-500.0,0.00014193,2]
[338702015,1726887041919,-18379.14,0.00014193,2]
[338702016,1726887041929,-500.0,0.00014193,2]
[338702017,1726887041940,-3136.62,0.00014193,2]
[338702018,1726887041949,-283.73,0.00014193,2]
[338702019,1726887041960,-500.0,0.00014193,2]
[338702020,1726887041970,-500.0,0.00014193,2]
[338702021,1726887041981,-500.0,0.00014193,2]
[338702022,1726887041990,-169.93724165,0.00014194,2]
[338702023,1726887042001,-95816.95840854,0.00014194,2]
[338702024,1726887042013,-151067.59962976,0.00014194,2]
[338702025,1726887042024,-151.0,0.00014194,2]
[338702026,1726887042033,-8465.53842792,0.00014195,2]
[338702027,1726887042045,-500.0,0.00014196,2]
[338702028,1726887042057,-500.0,0.00014196,2]
[338702029,1726887042067,-500.0,0.00014196,2]
[338702030,1726887042078,-503.61438479,0.00014196,2]
[338702031,1726887042087,-167.79758395,0.00014196,2]
[338702032,1726887042097,-500.0,0.00014196,2]
[338702033,1726887042107,-500.0,0.00014196,2]
[338702034,1726887042116,-500.0,0.00014196,2]
[338702035,1726887042126,-649.91,0.00014196,2]
[338702036,1726887042135,-500.0,0.00014196,2]
[338702037,1726887042145,-500.0,0.00014196,2]
[338702038,1726887042157,-500.0,0.00014196,2]
[338702039,1726887042168,-522.90981527,0.00014196,2]
[338702040,1726887042180,-500.0,0.00014196,2]
[338702041,1726887042193,-500.0,0.00014196,2]
[338702042,1726887042204,-500.0,0.00014196,2]
[338702043,1726887042213,-500.0,0.00014196,2]
[338702044,1726887042225,-500.0,0.00014196,2]
[338702045,1726887042235,-804.13,0.00014196,2]
[338702046,1726887042246,-506.48,0.00014196,2]
[338702047,1726887042256,-500.0,0.00014196,2]
[338702048,1726887042266,-500.0,0.00014196,2]
[338702049,1726887042275,-500.0,0.00014196,2]
[338702050,1726887042284,-500.0,0.00014196,2]
[338702051,1726887042295,-500.0,0.00014196,2]
[338702052,1726887042305,-500.0,0.00014196,2]
[338702053,1726887042314,-500.0,0.00014196,2]
[338702054,1726887042325,-500.0,0.00014196,2]
[338702055,1726887042337,-500.0,0.00014196,2]
[338702056,1726887042348,-500.0,0.00014196,2]
[338702057,1726887042359,-500.0,0.00014196,2]